Cogmind - Beta 14 @@@ ROGUE MODE // 2024.11.19 @ 13:49:27 Player: Fangrelle Result: Destroyed by 1U-9O5(R) with Subdweller Laser Performance ------------- Evolutions (0) 0 Regions Visited (3) 600 Robots Destroyed (40) 200 Value Destroyed (894) 894 Prototype IDs (0) 0 Alien Tech Used (0) 0 Bonus (0) 0 TOTAL SCORE: 1694 Bonus ------- None Cogmind --------- Core Integrity 0/250 Matter 273/300 Energy 270/275 System Corruption 0% Temperature Cool (6) Movement Rolling (135) Ox3 Location -10/Subcaves Parts ------- > --- POWER (1) -------- Deuterium Engine > --- PROPULSION (2) --- Wheel Compact Wheel > --- UTILITY (2) ------ Huge Storage Unit ECM Suite > --- WEAPON (2) ------- Light Cannon > --- INVENTORY (25) --- Light Ion Engine Deuterium Engine Light Deuterium Engine Wheel Wheel Improved Heat Sink Cargo Storage Unit High-capacity Matter Pod (200) Structural Scanner Hardlight Generator Hacking Suite High-powered Tractor Beam Small Laser Particle Gun Particle Gun Assault Rifle Grenade Launcher Datajack Mining Laser Heavy Mace Katana Peak State ------------ > --- POWER ------------ Deuterium Engine > --- PROPULSION ------- Wheel Compact Wheel > --- UTILITY ---------- Huge Storage Unit ECM Suite > --- WEAPON ----------- Particle Gun Assault Rifle > --- INVENTORY -------- Ion Engine Light Ion Engine Deuterium Engine Light Deuterium Engine Wheel Wheel Improved Heat Sink Large Storage Unit Cargo Storage Unit High-capacity Matter Pod Structural Scanner Hardlight Generator Hacking Suite High-powered Tractor Beam Heavy EM Pulse Gun Small Laser Particle Gun Light Cannon Grenade Launcher Datajack Mining Laser Heavy Mace Katana [Rating: 14] Favorites ----------- Power Ion Engine Engine Ion Engine Power Core Light Nuclear Core Propulsion Light Treads Treads Light Treads Leg Aluminum Leg Wheel Compact Wheel Utility Huge Storage Unit Device ECM Suite Storage Huge Storage Unit Processor Visual Processing Unit Protection Light Armor Plating Weapon Assault Rifle Energy Gun EM Shotgun Ballistic Gun Assault Rifle Ballistic Cannon Light Cannon Special Melee Weapon Datajack Build | -11 -10 -10 -10 ------- Run | Yrd Mat Min Sub Slots Evolved . | . . . . Power . | . . . . Propulsion . | . . . . Utility . | . . . . Weapon . | . . . . Parts Attached 34 | . 22 11 1 Power 6 | . 3 3 . Engine 5 | . 3 2 . Core 1 | . . 1 . Reactor . | . . . . Propulsion 6 | . 3 3 . Treads 3 | . 3 . . Leg . | . . . . Wheel 3 | . . 3 . Hover . | . . . . Flight . | . . . . Utility 5 | . 5 . . Device 1 | . 1 . . Storage 2 | . 2 . . Processor 1 | . 1 . . Hackware . | . . . . Protection 1 | . 1 . . Artifact . | . . . . Weapon 17 | . 11 5 1 Energy Gun 9 | . 5 4 . Energy Cannon . | . . . . Ballistic Gun 6 | . 5 1 . Ballistic Cannon 1 | . . . 1 Launcher . | . . . . Special Weapon . | . . . . Impact Weapon . | . . . . Slashing Weapon . | . . . . Piercing Weapon . | . . . . Special Melee Weapon 1 | . 1 . . Unidentified Prototypes . | . . . . Parts Lost 10 | . 2 7 1 Power 1 | . . 1 . Propulsion 2 | . . 2 . Utility 1 | . 1 . . Weapon 6 | . 1 4 1 Highest Loss Streak 2 | . 1 2 1 To Critical Strikes . | . . . . Average Slot Usage (%) 97 | . 97 95 100 Engine 11 | . 14 8 14 Core 1 | . . 5 . Treads 14 | . 27 1 . Wheel 12 | . . 25 28 Device 8 | . 2 14 14 Storage 14 | . 14 14 14 Processor 1 | . 2 . . Protection 3 | . 5 . . Energy Gun 15 | . 13 18 14 Ballistic Gun 11 | . 13 7 14 Peak Build Rating 14 | . 10 14 14 Average Rating 10 | . 8 11 13 On Entrance 9 | 6 6 10 14 Naked Turns . | . . . . Heaviest Build 96 | 10 94 96 96 Greatest Support 40 | 20 40 32 26 Greatest Overweight (x) 30 | . 2 30 3 Average Overweight (x) 1 | . . 2 3 Largest Inventory Capacity 25 | . 25 25 25 Average Capacity 20 | . 17 25 25 Most Carried 24 | . 13 24 23 Average Carried 14 | . 10 18 22 Final Capacity 25 | 8 25 25 25 Final Carried 23 | 6 12 23 22 Class Distribution -------------------- 97% | Mutant Dominant Class ---------------- Mutant | -10/Materials Mutant | -10/Mines Mutant | -10/Subcaves Resources | -11 -10 -10 -10 ----------- Run | Yrd Mat Min Sub Matter Collected 1034 | 194 749 91 . Remotely . | . . . . Salvage Created 1498 | . 1005 493 . Parts 97 | . 62 35 . Haulers Intercepted 2 | . 2 . . Recyclers Shooed 1 | . 1 . . Parts Field Recycled . | . . . . Retrieved Matter . | . . . . Parts Self-Destructed 2 | . . . 2 Prevented . | . . . . Kills | -11 -10 -10 -10 ------- Run | Yrd Mat Min Sub Combat Hostiles Destroyed 28 | . 18 10 . Guns 28 | . 18 10 . Classes Destroyed 8 | . 7 1 . Worker 2 | . . 2 . Builder 1 | . 1 . . Hauler 2 | . 2 . . Recycler 3 | . 1 2 . Operator 1 | . 1 . . Watcher 3 | . 3 . . Swarmer 9 | . 3 6 . Grunt 19 | . 15 4 . Best Kill Streak 4 | . 4 4 . Combat Bots Only 4 | . 4 3 . Max Kills in Single Turn 2 | . 2 2 . Gunslinging 1 | . 1 . . Exploded . | . . . . Melee . | . . . . Uniques/NPCs Destroyed . | . . . . Combat | -11 -10 -10 -10 -------- Run | Yrd Mat Min Sub Hostile Shots Fired 166 | . 115 45 6 Missed 46 | . 36 9 1 Damage Taken 1475 | . 983 385 107 Core 270 | . 168 58 44 Absorbed by Shields . | . . . . Core Remaining (%) 100 | 100 . . . Volleys Fired 116 | . 91 22 3 Largest 2 | . 2 2 2 Hottest 90 | . 90 90 65 Shots Fired 218 | . 181 32 5 Gun 217 | . 181 32 4 Cannon 1 | . . . 1 Launcher . | . . . . Special . | . . . . Kinetic 115 | . 111 1 3 Thermal 38 | . 38 . . Explosive . | . . . . Electromagnetic 65 | . 32 31 2 Robot Hit Streak 17 | . 9 15 17 Robot Miss Streak 5 | . 5 2 1 Penetration Max . | . . . . Secondary Targets 4 | . 3 1 . Max Gunslinging Chain 1 | . 1 1 . Shots Hit Robots 147 | . 117 27 3 Core Hits 75 | . 49 25 1 Critical Kills . | . . . . Critical Parts Destroyed 1 | . 1 . . Critical Strikes 1 | . 1 . . Destroy 1 | . 1 . . Melee Attacks 1 | . 1 . . Impact . | . . . . Slashing . | . . . . Piercing . | . . . . Sneak Attacks 1 | . 1 . . Combat Hostiles . | . . . . Follow-up Attacks . | . . . . Damage Inflicted 1901 | . 1433 429 39 Guns 1852 | . 1433 380 39 Cannons . | . . . . Explosions 38 | . . 38 . Melee . | . . . . Ramming 11 | . . 11 . Kinetic 863 | . 827 11 25 Thermal 300 | . 262 38 . Explosive . | . . . . Electromagnetic 727 | . 344 369 14 Impact . | . . . . Slashing . | . . . . Piercing . | . . . . Highest Corruption . | . . . . Average Corruption . | . . . . Corruption Purged . | . . . . Corruption Blocked . | . . . . Overload Shots . | . . . . Overflow Damage . | . . . . Projectiles . | . . . . Explosions . | . . . . Melee . | . . . . Knockbacks . | . . . . Impact . | . . . . Kinetic . | . . . . Secondary . | . . . . Self-Inflicted Damage 32 | . . 32 . Shots 1 | . . 1 . Rammed 1 | . . 1 . Targets Rammed 1 | . . 1 . Kicked . | . . . . Crushed . | . . . . Highest Temperature 277 | . 277 138 . Average Temperature 73 | . 79 53 . Received Heat Transfer 618 | . 501 87 30 Siege Activations . | . . . . Robots Corrupted . | . . . . Combat Hostiles . | . . . . Parts Fried 2 | . 2 . . Impact Corruptions . | . . . . Robots Melted . | . . . . Combat Hostiles . | . . . . Parts Melted 1 | . 1 . . Heat Transferred 650 | . 600 50 . Parts Sabotaged . | . . . . Parts Stolen . | . . . . Parts Stripped . | . . . . Power Chain Reactions 1 | . . 1 . Alert | -11 -10 -10 -10 ------- Run | Yrd Mat Min Sub Peak Influence 304 | . 304 185 . Initial 95 | . . 95 . Average 108 | . 133 71 . Maximum Alert Level 1 | . 1 . . Low Security (%) 77 | . 62 100 . Level 1 22 | . 37 . . Level 2 . | . . . . Level 3 . | . . . . Level 4 . | . . . . Level 5 . | . . . . High Security . | . . . . Max Security . | . . . . Squads Dispatched 7 | . 6 1 . Investigation 7 | . 6 1 . Extermination . | . . . . Reinforcement . | . . . . Assault . | . . . . Garrison . | . . . . Intercept . | . . . . Searches Triggered . | . . . . Construction Impeded . | . . . . Haulers Reinforced . | . . . . Active Scanning Responses . | . . . . Cargo Convoy Interrupts . | . . . . Stealth | -11 -10 -10 -10 --------- Run | Yrd Mat Min Sub Distress Signals 1 | . 1 . . Communications Jammed . | . . . . Distress Signals . | . . . . Times Spotted 42 | . 26 15 1 Peak Tracking Total 5 | . 5 3 1 Tactical Retreats 4 | . 1 3 . Traps | -11 -10 -10 -10 ------- Run | Yrd Mat Min Sub Traps Triggered 4 | . 4 . . Indirectly . | . . . . Trap Hack Attempts 2 | . 2 . . Triggered . | . . . . Disarmed . | . . . . Reprogrammed 1 | . 1 . . Reused . | . . . . Traps Extracted . | . . . . Installed . | . . . . Triggered 6 | . . . 6 Machines | -11 -10 -10 -10 ---------- Run | Yrd Mat Min Sub Machines Disabled . | . . . . Max in Single Turn . | . . . . Machines Repaired . | . . . . Machines Dismantled . | . . . . Machines Sabotaged . | . . . . Overloaded Fab Kills . | . . . . Hacking | -11 -10 -10 -10 --------- Run | Yrd Mat Min Sub Machines Accessed 11 | . 10 1 . Terminals 8 | . 8 . . Fabricators . | . . . . Repair Stations . | . . . . Recycling Units 2 | . 2 . . Scanalyzers . | . . . . Garrison Access . | . . . . Total Hacks 25 | . 24 1 . Successful 12 | . 11 1 . Failed 13 | . 13 . . Catastrophic 3 | . 3 . . Database Lockouts . | . . . . Manual 22 | . 22 . . Terminals 20 | . 20 . . Fabricators . | . . . . Repair Stations . | . . . . Recycling Units 4 | . 4 . . Scanalyzers . | . . . . Garrison Access . | . . . . Terminal Hacks 1 | . . 1 . Open Door 1 | . . 1 . Fabricator Hacks . | . . . . Repair Station Hacks . | . . . . Recycling Unit Hacks 1 | . 1 . . Retrieve Components 1 | . 1 . . Scanalyzer . | . . . . Garrison Access Hacks . | . . . . Unauthorized Hacks 10 | . 10 . . Terminals 8 | . 8 . . Assimilate 3 | . 3 . . Botnet 5 | . 5 . . Fabricators . | . . . . Repair Stations . | . . . . Recycling Units 2 | . 2 . . Tunnel 2 | . 2 . . Scanalyzers . | . . . . Garrison Access . | . . . . Data Cores Recovered . | . . . . Used . | . . . . Hacking Detections 9 | . 9 . . Full Trace Events 1 | . 1 . . Feedback Events . | . . . . Feedback Blocked . | . . . . Robot Schematics Acquired . | . . . . Robots Built . | . . . . Authchips . | . . . . Time . | . . . . Total Robot Build Rating . | . . . . Part Schematics Acquired . | . . . . Parts Built . | . . . . Authchips . | . . . . Time . | . . . . Total Part Build Rating . | . . . . Parts Repaired . | . . . . Time . | . . . . Parts Recycled . | . . . . Recycled Matter . | . . . . Retrieved Matter . | . . . . Retrieved Components 9 | . 9 . . Parts Scanalyzed . | . . . . Part Schematics Acquired . | . . . . Parts Damaged . | . . . . Bothacking | -11 -10 -10 -10 ------------ Run | Yrd Mat Min Sub Used RIF Installer . | . . . . Robots Hacked 1 | . 1 . . Non-combat 1 | . 1 . . Combat . | . . . . Robot Hacks Applied 1 | . 1 . . no_distress 1 | . 1 . . Relay Couplers Released . | . . . . Fabnet Peak Effective % . | . . . . Robots Rewired . | . . . . Allies Hacked . | . . . . Hacks Repelled . | . . . . Allies | -11 -10 -10 -10 -------- Run | Yrd Mat Min Sub Total Allies . | . . . . Largest Group . | . . . . Highest-Rated Group . | . . . . Highest-Rated Ally . | . . . . Total Orders . | . . . . Ally Attacks . | . . . . Total Damage . | . . . . Kills . | . . . . Allies Corrupted . | . . . . Allies Melted . | . . . . Intel | -11 -10 -10 -10 ------- Run | Yrd Mat Min Sub Robot Analysis Total . | . . . . Derelict Logs Recovered 2 | . . 1 1 Drone Launches . | . . . . Drone Recoveries . | . . . . Exploration | -11 -10 -10 -10 ------------- Run | Yrd Mat Min Sub Turns Passed 4085 | . 2170 1461 454 Spaces Moved 1758 | 1 929 783 45 Core 1 | . . 1 . Treads 898 | . 877 21 . Legs 53 | 1 52 . . Wheels 806 | . . 761 45 Hover . | . . . . Flight . | . . . . Fastest Speed 120 | 120 120 130 135 Average Speed 166 | 120 184 147 135 Slowest Speed 1550 | 120 320 1550 135 Overloaded Moves . | . . . . Propulsion Burnouts . | . . . . Robots Hopped . | . . . . Cave-ins Triggered . | . . . . Exploration Rate (%) 50 | 2 99 100 2 Regions Visited 3 Branch Regions 2 Pre-discovered Areas 3 | . 2 . 1 Known Exits Taken . | . . . . Unknown Exits Taken 3 | 1 1 1 . Scrap Searched 1 | . . 1 . Spaces Dug . | . . . . Terrain Destroyed 5 | . . 5 . Melee . | . . . . Projectile . | . . . . AOE 5 | . . 5 . Terrain Rammed . | . . . . Walls Destroyed . | . . . . Machines Disabled . | . . . . Actions | -11 -10 -10 -10 --------- Run | Yrd Mat Min Sub Total 2694 | . 1202 1059 433 Wait 721 | . 114 224 383 Move 1755 | . 928 782 45 Hop . | . . . . Pick Up 40 | . 23 17 . Fast Attach 4 | . 3 1 . Attach 11 | . 4 7 . Detach . | . . . . Swap 19 | . 15 3 1 Drop 24 | . 21 2 1 Fire 116 | . 91 22 3 Melee 1 | . 1 . . Ram 1 | . . 1 . Kick . | . . . . Crush . | . . . . Escape Stasis . | . . . . Rewire . | . . . . Trap 2 | . 2 . . Miscellaneous . | . . . . Route ------- -11/Scrapyard -10/Materials (discovered 4 exits: [*Mat x3] / *Min) -10/Mines (discovered 3 exits: [*Mat x2] / [*Sub]) -10/Subcaves History --------- Turn | Location | Event 1 | -11/Scrapyard | Discovered new exit (range 0) 1 | -11/Scrapyard | Entered Materials 204 | -10/Materials | Discovered new exit (range 14) 321 | -10/Materials | Build established: Mutant 982 | -10/Materials | Discovered new exit (range 8) 1265 | -10/Materials | Discovered new exit (range 10) 1284 | -10/Materials | Core integrity fell below 50% 1484 | -10/Materials | Discovered new exit (range 16) 2171 | -10/Materials | Entered Mines 2576 | -10/Mines | Discovered new exit (range 8) 2624 | -10/Mines | Learned 2 Materials zone layouts 2794 | -10/Mines | Core integrity fell below 20% 2886 | -10/Mines | Discovered new exit (range 7) 3168 | -10/Mines | Met a Derelict shopkeep closing up shop 3628 | -10/Mines | Discovered new exit (range 4) 3632 | -10/Mines | Entered Subcaves 3641 | -10/Subcaves | Learned location of Zion (-6) 4086 | -10/Subcaves | Destroyed by 1U-9O5(R) with Subdweller Laser Last Messages --------------- 03473_ K-01 Serf cleans the Matter Pump. 03508_ U-05 Engineer lays Concrete. 03518_ U-05 Engineer builds a Wall. 03532_ U-05 Engineer lays Concrete. 03536_ U-05 Engineer builds a Wall. 03547_ K-01 Serf collects debris. 03548_ U-05 Engineer lays Concrete. 03581_ K-01 Serf cleans the Matter Pump. 03628_ EXIT=FOUND LOCATION=UNKNOWN AMBIENT_HEAT=-10 GOAL=ESCAPE 03641_ Acquired derelict log, extracted data. World map updated: -6/Zion. 03828_ Dropped Lrg. Storage Unit. 03833_ Subatomizers dissect the Lrg. Storage Unit. SB-7O0(R) emerges from concealment. 03843_ Subatomizers dissect the Lrg. Storage Unit. 03959_ Subatomizers dissect the Lrg. Storage Unit, destroying it. 04084_ Hvy. EM Pulse Gun destroyed. Map ----- +----------------------------------------------------+ | ?????????????????????????????????????????????????? | | ?????????????????????????????????????????????????? | | ?????????????????????????????????????????????????? | | ?????????????????????????????????????????????????? | | ?????????????????????????????????????????????????? | | ?????????????????????????????????????????????????? | | ?????????????????????????????????????????????????? | | ??????????????????????????????#??????????????????? | | ????????????????????###???##? #??????????????????? | | ????????????????????# ##?? ## #??????????????????? | | ????????????????##### ### ### ###???????????? | | ????????????????# # ???????????? | | ???????????????## #????????????????? | | ???????????????# # #### ##????????????????? | | ???????????????## ## ##??????????????????????? | | ????????????????# #### ##??????????????????????? | | ??????????####### ### #??????????????????????? | | ??????????# #??????????????????????? | | ??????????# ##??????????????????????? | | ??????????###### ## ##???????????????????????? | | ???????????????###### #????????????????????????? | | ????????????????????# #????????????????????????? | | ????????????????????## #????????????????????????? | | ?????????????????????# ###??????????????????????? | | ?????????????????????## # #??????????????????????? | | ??????????????????????# @##?????????????????????? | | ?????????????????????# # #?????????????????????? | | ?????????????????????### ##?????????????????????? | | ???????????????????????# #?????????????????????? | | ???????????????????????## ##?????????????????????? | | ????????????????????????#R#??????????????????????? | | ???????????????????????? "#??????????????????????? | | ???????????????????????? "#??????????????????????? | | ????????????????????????""#??????????????????????? | | ????????????????????????"""??????????????????????? | | ????????????????????????#????????????????????????? | | ?????????????????????????????????????????????????? | | ?????????????????????????????????????????????????? | | ?????????????????????????????????????????????????? | | ?????????????????????????????????????????????????? | | ?????????????????????????????????????????????????? | | ?????????????????????????????????????????????????? | | ?????????????????????????????????????????????????? | | ?????????????????????????????????????????????????? | | ?????????????????????????????????????????????????? | | ?????????????????????????????????????????????????? | | ?????????????????????????????????????????????????? | | ?????????????????????????????????????????????????? | | ?????????????????????????????????????????????????? | | ?????????????????????????????????????????????????? | +----------------------------------------------------+ Best States ------------- Heat Dissipation 25 Energy Generation 14 Energy Capacity 275 Matter Stores 300 Matter Capacity 300 Sight Range 18 Terrain Scan Density 10 ECM Strength 1 Armor Coverage 150 Evasion (%) 55 Recoil Reduction 2 Item Schematics ----------------- None Robot Schematics ------------------ None Fabricated ------------ Nothing Alien Tech Used ----------------- None Achievements -------------- None Challenges ------------ None Game ------ Seed ScatterGuidanceScanner Manual? 0 Play Time 00:17:12 Cumulative 118.4 hours Start 2024.11.19 @ 13:31:45 End 2024.11.19 @ 13:49:27 Sessions 1 Manual Loads 0 Difficulty Rogue Special Mode None Game No. 221 Rogue 221 Adventurer 0 Explorer 0 Win Type - Total 0 Types 0/0/0/0/0/0/0/0/0 Lore% 42 Gallery% 40 Achievement% 35 Wizard Run 0 Options --------- Layout 0 ASCII 0 Keyboard 0 Movement Mouse Keybinds 0 Fullscreen 1 Font 24/Smallcaps Map View 91x25 Zoom Use 92% Tactical HUD 1 Map Filters NONE Filters NONE Steam 1 RUN: 70e476a1-bc59-4823-9f22-cf717e3ad7be